[Event "*** Titled Tuesday Blitz"]
[Site "Chess.com"]
[Date "2020.03.03"]
[Round "7"]
[White "piscatorox"]
[Black "Oligan22"]
[Result "1/2-1/2"]
[WhiteElo "2269"]
[BlackElo "2391"]
[TimeControl "180+1"]
[EndTime "10:14:05 PST"]
[Termination "Game drawn by repetition"]

1. e4 {[%clk 0:03:00.9]} 1... c6 {[%clk 0:02:59.9]} 2. Nf3 {[%clk 0:03:00.5]}
2... d5 {[%clk 0:02:59.8]} 3. Nc3 {[%clk 0:03:01.1]} 3... dxe4 {[%clk
0:02:58.9]} 4. Nxe4 {[%clk 0:03:01.1]} 4... Nf6 {[%clk 0:02:59.8]} 5. Qe2 {[%clk
0:03:00.1]} 5... Qd5 {[%clk 0:02:53.9]} 6. Nxf6+ {[%clk 0:02:47.1]} 6... gxf6
{[%clk 0:02:54.8]} 7. c4 {[%clk 0:02:38.7]} 7... Qa5 {[%clk 0:02:50.6]} 8. Qe4
{[%clk 0:02:15]} 8... Na6 {[%clk 0:02:44.3]} 9. Be2 {[%clk 0:02:06.3]} 9... Bf5
{[%clk 0:02:38.5]} 10. Qf4 {[%clk 0:02:05]} 10... h5 {[%clk 0:02:26.8]} 11. Nd4
{[%clk 0:01:52.5]} 11... Bg6 {[%clk 0:02:23.3]} 12. Nb3 {[%clk 0:01:23]} 12...
Qg5 {[%clk 0:02:10.3]} 13. d4 {[%clk 0:01:13.2]} 13... Nb4 {[%clk 0:02:05.5]}
14. O-O {[%clk 0:01:04.6]} 14... Nc2 {[%clk 0:01:54.8]} 15. Qc7 {[%clk
0:01:03.5]} 15... Qf5 {[%clk 0:01:31.2]} 16. Qxb7 {[%clk 0:01:03.3]} 16... Qc8
{[%clk 0:01:29.6]} 17. Qxc8+ {[%clk 0:00:57.3]} 17... Rxc8 {[%clk 0:01:29.6]}
18. Rb1 {[%clk 0:00:55.3]} 18... Nxd4 {[%clk 0:01:29.8]} 19. Nxd4 {[%clk
0:00:50.5]} 19... Bxb1 {[%clk 0:01:30.2]} 20. Bf3 {[%clk 0:00:46.4]} 20... c5
{[%clk 0:01:30]} 21. Nb5 {[%clk 0:00:42.9]} 21... Bg7 {[%clk 0:00:58.6]} 22.
Nxa7 {[%clk 0:00:39.5]} 22... Rb8 {[%clk 0:00:52.1]} 23. Nc6 {[%clk 0:00:22]}
23... Rb6 {[%clk 0:00:51.8]} 24. Rd1 {[%clk 0:00:17.5]} 24... O-O {[%clk
0:00:43.6]} 25. Nxe7+ {[%clk 0:00:17.9]} 25... Kh7 {[%clk 0:00:43.7]} 26. Nd5
{[%clk 0:00:15.7]} 26... Rbb8 {[%clk 0:00:41.7]} 27. b3 {[%clk 0:00:14.2]} 27...
Bg6 {[%clk 0:00:39]} 28. Be3 {[%clk 0:00:11.8]} 28... Rbc8 {[%clk 0:00:37.3]}
29. Ne7 {[%clk 0:00:10.8]} 29... Rc7 {[%clk 0:00:36.7]} 30. Nd5 {[%clk
0:00:10.8]} 30... Rcc8 {[%clk 0:00:34.8]} 31. Ne7 {[%clk 0:00:10.7]} 31... Rc7
{[%clk 0:00:35.1]} 32. Nd5 {[%clk 0:00:10.7]} 32... Ra7 {[%clk 0:00:34.4]} 33.
Bxc5 {[%clk 0:00:09.7]} 33... Rxa2 {[%clk 0:00:34.9]} 34. Bxf8 {[%clk
0:00:09.4]} 34... Bxf8 {[%clk 0:00:35.8]} 35. Nxf6+ {[%clk 0:00:09.2]} 35... Kg7
{[%clk 0:00:36.3]} 36. Nxh5+ {[%clk 0:00:09]} 36... Kh6 {[%clk 0:00:36.8]} 37.
Nf4 {[%clk 0:00:08.2]} 37... Bc2 {[%clk 0:00:37.5]} 38. Re1 {[%clk 0:00:05.7]}
38... Bxb3 {[%clk 0:00:37.3]} 39. Be2 {[%clk 0:00:03.8]} 39... Bc5 {[%clk
0:00:36.8]} 40. g3 {[%clk 0:00:03]} 40... Rc2 {[%clk 0:00:24.3]} 41. Rf1 {[%clk
0:00:02.7]} 41... Rb2 {[%clk 0:00:19.4]} 42. Nd3 {[%clk 0:00:01.5]} 42... Rxe2
{[%clk 0:00:15.5]} 43. Nxc5 {[%clk 0:00:02]} 43... Bxc4 {[%clk 0:00:15.8]} 44.
Nd7 {[%clk 0:00:01.3]} 44... Re7 {[%clk 0:00:12]} 45. Nf6 {[%clk 0:00:01.2]}
45... Bxf1 {[%clk 0:00:07.9]} 46. Kxf1 {[%clk 0:00:02.1]} 46... Kg7 {[%clk
0:00:07.6]} 47. Ng4 {[%clk 0:00:02.5]} 47... Ra7 {[%clk 0:00:07.5]} 48. Ne3
{[%clk 0:00:02.9]} 48... Ra2 {[%clk 0:00:07.7]} 49. Kg2 {[%clk 0:00:03.6]} 49...
Kg6 {[%clk 0:00:07.8]} 50. Kf3 {[%clk 0:00:04.1]} 50... f6 {[%clk 0:00:08.1]}
51. h3 {[%clk 0:00:04.5]} 51... Rb2 {[%clk 0:00:08.5]} 52. Kg2 {[%clk
0:00:04.6]} 52... Rb3 {[%clk 0:00:08.8]} 53. Kf3 {[%clk 0:00:05.1]} 53... Ra3
{[%clk 0:00:09.2]} 54. Kg2 {[%clk 0:00:05.3]} 54... Rb3 {[%clk 0:00:09]} 55. Kf3
{[%clk 0:00:05.8]} 55... Rb2 {[%clk 0:00:09.1]} 56. Kg2 {[%clk 0:00:06.3]} 56...
Rb3 {[%clk 0:00:09.6]} 1/2-1/2

[Event "*** Titled Tuesday Blitz"]
[Site "Chess.com"]
[Date "2020.03.03"]
[Round "7"]
[White "Turkey-Champion"]
[Black "ronaldbrizuela"]
[Result "1-0"]
[WhiteElo "2521"]
[BlackElo "2634"]
[TimeControl "180+1"]
[EndTime "10:14:06 PST"]
[Termination "Turkey-Champion won on time"]

1. e4 {[%clk 0:03:00.9]} 1... e6 {[%clk 0:02:59.9]} 2. d4 {[%clk 0:03:00.7]}
2... d5 {[%clk 0:03:00.8]} 3. Nc3 {[%clk 0:03:01.6]} 3... Nf6 {[%clk 0:03:00.9]}
4. e5 {[%clk 0:03:01.4]} 4... Nfd7 {[%clk 0:03:00.8]} 5. f4 {[%clk 0:03:02.3]}
5... c5 {[%clk 0:03:01.7]} 6. Nf3 {[%clk 0:03:03.2]} 6... Nc6 {[%clk 0:03:02.4]}
7. Be3 {[%clk 0:03:03.9]} 7... Qb6 {[%clk 0:03:00.3]} 8. Na4 {[%clk 0:03:03.8]}
8... Qc7 {[%clk 0:02:52.4]} 9. Nxc5 {[%clk 0:03:00.4]} 9... Nxc5 {[%clk
0:01:58.3]} 10. dxc5 {[%clk 0:03:01.3]} 10... b6 {[%clk 0:01:49.4]} 11. cxb6
{[%clk 0:02:59.3]} 11... axb6 {[%clk 0:01:49.7]} 12. Bb5 {[%clk 0:02:59.5]}
12... Bd7 {[%clk 0:01:49.4]} 13. O-O {[%clk 0:02:57.4]} 13... Bc5 {[%clk
0:01:49.7]} 14. Qd2 {[%clk 0:02:55]} 14... Nxe5 {[%clk 0:01:46.5]} 15. fxe5
{[%clk 0:02:32.8]} 15... Bxb5 {[%clk 0:01:43.9]} 16. Rf2 {[%clk 0:02:25.9]}
16... O-O {[%clk 0:01:37.1]} 17. b4 {[%clk 0:02:05.7]} 17... Bxe3 {[%clk
0:01:28.1]} 18. Qxe3 {[%clk 0:02:06.6]} 18... Bc4 {[%clk 0:01:27.1]} 19. a3
{[%clk 0:01:56.1]} 19... b5 {[%clk 0:01:24.6]} 20. Nd4 {[%clk 0:01:41.9]} 20...
Qe7 {[%clk 0:01:00.2]} 21. Re1 {[%clk 0:01:37.5]} 21... Ra6 {[%clk 0:00:56]} 22.
Qg3 {[%clk 0:01:18.4]} 22... h6 {[%clk 0:00:38.3]} 23. Kh1 {[%clk 0:01:01.4]}
23... f5 {[%clk 0:00:31.9]} 24. h4 {[%clk 0:00:45.7]} 24... g5 {[%clk
0:00:29.6]} 25. Nf3 {[%clk 0:00:39.8]} 25... g4 {[%clk 0:00:27.9]} 26. Nd4
{[%clk 0:00:38.7]} 26... h5 {[%clk 0:00:22.6]} 27. Rf4 {[%clk 0:00:38.4]} 27...
Rfa8 {[%clk 0:00:19.6]} 28. Re3 {[%clk 0:00:37.1]} 28... Qa7 {[%clk 0:00:17.4]}
29. Nxf5 {[%clk 0:00:19.7]} 29... exf5 {[%clk 0:00:17.1]} 30. Rxf5 {[%clk
0:00:20.6]} 30... Rg6 {[%clk 0:00:17.4]} 31. e6 {[%clk 0:00:19.9]} 31... d4
{[%clk 0:00:16.9]} 32. Ree5 {[%clk 0:00:09.3]} 32... Bxe6 {[%clk 0:00:17.2]} 33.
Rg5 {[%clk 0:00:06.3]} 33... Bf7 {[%clk 0:00:17.3]} 34. Qd3 {[%clk 0:00:05.9]}
34... Qa6 {[%clk 0:00:15]} 35. Ref5 {[%clk 0:00:05.6]} 35... Kg7 {[%clk
0:00:12.9]} 36. Qxd4+ {[%clk 0:00:05.6]} 36... Kg8 {[%clk 0:00:08.8]} 37. Rxh5
{[%clk 0:00:05]} 37... Rg7 {[%clk 0:00:08.7]} 38. Rhg5 {[%clk 0:00:03.8]} 38...
Bg6 {[%clk 0:00:07.2]} 39. Qd5+ {[%clk 0:00:04.3]} 39... Kh7 {[%clk 0:00:06]}
40. Rh5+ {[%clk 0:00:04.2]} 40... Bxh5 {[%clk 0:00:05.6]} 41. Rxh5+ {[%clk
0:00:05.1]} 41... Qh6 {[%clk 0:00:02]} 42. Rxh6+ {[%clk 0:00:05.4]} 42... Kxh6
{[%clk 0:00:02.9]} 43. Qxa8 {[%clk 0:00:06.1]} 43... g3 {[%clk 0:00:03.8]} 44.
Qe4 {[%clk 0:00:06]} 44... Rf7 {[%clk 0:00:04.7]} 45. Qe3+ {[%clk 0:00:06]} 1-0

[Event "*** Titled Tuesday Blitz"]
[Site "Chess.com"]
[Date "2020.03.03"]
[Round "7"]
[White "tbalabayev"]
[Black "Galileo22"]
[Result "1-0"]
[WhiteElo "2452"]
[BlackElo "2299"]
[TimeControl "180+1"]
[EndTime "10:14:06 PST"]
[Termination "tbalabayev won by checkmate"]

1. Nf3 {[%clk 0:03:00.9]} 1... d5 {[%clk 0:02:28.8]} 2. g3 {[%clk 0:02:59.2]}
2... Nf6 {[%clk 0:02:26.5]} 3. Bg2 {[%clk 0:02:59.5]} 3... g6 {[%clk 0:02:25.8]}
4. O-O {[%clk 0:02:59.8]} 4... Bg7 {[%clk 0:02:26.7]} 5. d3 {[%clk 0:03:00]}
5... O-O {[%clk 0:02:27.6]} 6. Nbd2 {[%clk 0:02:59.8]} 6... c5 {[%clk
0:02:28.2]} 7. e4 {[%clk 0:02:59.9]} 7... Nc6 {[%clk 0:02:29.1]} 8. Re1 {[%clk
0:02:59.7]} 8... e5 {[%clk 0:02:16.9]} 9. exd5 {[%clk 0:02:56.1]} 9... Nxd5
{[%clk 0:02:16.9]} 10. Nc4 {[%clk 0:02:56.7]} 10... Re8 {[%clk 0:02:05]} 11. c3
{[%clk 0:02:55.1]} 11... h6 {[%clk 0:01:57.5]} 12. Qb3 {[%clk 0:02:37.9]} 12...
Nc7 {[%clk 0:01:48.8]} 13. Be3 {[%clk 0:02:22.1]} 13... b6 {[%clk 0:01:31]} 14.
Nfd2 {[%clk 0:02:01.1]} 14... Bb7 {[%clk 0:01:12.4]} 15. Ne4 {[%clk 0:01:49.3]}
15... Bf8 {[%clk 0:00:54.8]} 16. Rad1 {[%clk 0:01:00.3]} 16... Kh7 {[%clk
0:00:13.9]} 17. Nxc5 {[%clk 0:00:36.2]} 17... Bxc5 {[%clk 0:00:11.6]} 18. Bxc5
{[%clk 0:00:35.7]} 18... Re6 {[%clk 0:00:10.7]} 19. d4 {[%clk 0:00:28.6]} 19...
exd4 {[%clk 0:00:09.3]} 20. Bxd4 {[%clk 0:00:26.7]} 20... Rxe1+ {[%clk
0:00:08.3]} 21. Rxe1 {[%clk 0:00:24.1]} 21... Nxd4 {[%clk 0:00:08.8]} 22. cxd4
{[%clk 0:00:24.3]} 22... Bxg2 {[%clk 0:00:08.6]} 23. Kxg2 {[%clk 0:00:23.9]}
23... Qd5+ {[%clk 0:00:08.9]} 24. f3 {[%clk 0:00:18.2]} 24... Re8 {[%clk
0:00:07.6]} 25. Rxe8 {[%clk 0:00:17.3]} 25... Nxe8 {[%clk 0:00:08.5]} 26. Qd3
{[%clk 0:00:17.4]} 26... Nf6 {[%clk 0:00:07.1]} 27. a3 {[%clk 0:00:16.6]} 27...
Kg7 {[%clk 0:00:06.9]} 28. Ne5 {[%clk 0:00:16.3]} 28... h5 {[%clk 0:00:06.1]}
29. Kf2 {[%clk 0:00:15.4]} 29... Qd6 {[%clk 0:00:03.1]} 30. Qc4 {[%clk
0:00:15.2]} 30... Qe7 {[%clk 0:00:02.2]} 31. Nc6 {[%clk 0:00:13.2]} 31... Qd7
{[%clk 0:00:01.5]} 32. Ne5 {[%clk 0:00:11.7]} 32... Qe7 {[%clk 0:00:01.8]} 33.
Qd3 {[%clk 0:00:10.1]} 33... Qd6 {[%clk 0:00:02]} 34. Qe3 {[%clk 0:00:08.3]}
34... h4 {[%clk 0:00:02]} 35. gxh4 {[%clk 0:00:07.8]} 35... Nh5 {[%clk
0:00:01.5]} 36. Qe4 {[%clk 0:00:07.1]} 36... Qe6 {[%clk 0:00:01.4]} 37. d5
{[%clk 0:00:06.4]} 37... Qf6 {[%clk 0:00:02.3]} 38. Nd3 {[%clk 0:00:05.5]} 38...
Qxb2+ {[%clk 0:00:01.4]} 39. Nxb2 {[%clk 0:00:03.5]} 39... Nf6 {[%clk
0:00:02.3]} 40. Qd4 {[%clk 0:00:03.8]} 40... g5 {[%clk 0:00:02.7]} 41. d6 {[%clk
0:00:03.7]} 41... Kg6 {[%clk 0:00:03.6]} 42. d7 {[%clk 0:00:04]} 42... Kh5
{[%clk 0:00:04.5]} 43. d8=Q {[%clk 0:00:04]} 43... gxh4 {[%clk 0:00:05.3]} 44.
Q4xf6 {[%clk 0:00:03.5]} 44... h3 {[%clk 0:00:06.2]} 45. Qg5# {[%clk 0:00:04.4]}
1-0

[Event "*** Titled Tuesday Blitz"]
[Site "Chess.com"]
[Date "2020.03.03"]
[Round "7"]
[White "swayamsm"]
[Black "AndreyNeves"]
[Result "1-0"]
[WhiteElo "2481"]
[BlackElo "2192"]
[TimeControl "180+1"]
[EndTime "10:14:07 PST"]
[Termination "swayamsm won by checkmate"]

1. d4 {[%clk 0:03:00.9]} 1... Nf6 {[%clk 0:02:59]} 2. Nf3 {[%clk 0:02:59.9]}
2... e6 {[%clk 0:02:58.6]} 3. Bf4 {[%clk 0:03:00.4]} 3... b6 {[%clk 0:02:52.7]}
4. e3 {[%clk 0:02:59.9]} 4... Bb7 {[%clk 0:02:50.9]} 5. Bd3 {[%clk 0:03:00.4]}
5... Bd6 {[%clk 0:02:50.5]} 6. Bg3 {[%clk 0:02:58.9]} 6... O-O {[%clk
0:02:47.6]} 7. Nbd2 {[%clk 0:02:58.3]} 7... Nc6 {[%clk 0:02:35.7]} 8. e4 {[%clk
0:02:55.8]} 8... Bxg3 {[%clk 0:02:28.7]} 9. hxg3 {[%clk 0:02:56.7]} 9... Nb4
{[%clk 0:02:28.4]} 10. Qe2 {[%clk 0:02:49.5]} 10... Nxd3+ {[%clk 0:02:26.4]} 11.
Qxd3 {[%clk 0:02:50.2]} 11... d5 {[%clk 0:02:17.7]} 12. e5 {[%clk 0:02:49.9]}
12... Ne4 {[%clk 0:02:17.9]} 13. O-O-O {[%clk 0:02:50.5]} 13... c5 {[%clk
0:02:05.7]} 14. Rh4 {[%clk 0:02:50.7]} 14... c4 {[%clk 0:01:49.3]} 15. Qe3
{[%clk 0:02:40.6]} 15... c3 {[%clk 0:01:33.2]} 16. Nxe4 {[%clk 0:02:36.4]} 16...
cxb2+ {[%clk 0:01:32.2]} 17. Kb1 {[%clk 0:02:33.9]} 17... dxe4 {[%clk
0:01:32.2]} 18. Ng5 {[%clk 0:02:34.5]} 18... h6 {[%clk 0:01:11.9]} 19. Nxe4
{[%clk 0:02:34.6]} 19... Bxe4 {[%clk 0:00:58.4]} 20. Rxe4 {[%clk 0:02:34.6]}
20... Qd5 {[%clk 0:00:56.1]} 21. Rg4 {[%clk 0:02:32.8]} 21... f5 {[%clk
0:00:44.8]} 22. Rg6 {[%clk 0:02:27.1]} 22... Kf7 {[%clk 0:00:40.3]} 23. Rxh6
{[%clk 0:02:16.2]} 23... gxh6 {[%clk 0:00:40.2]} 24. Qxh6 {[%clk 0:02:17.1]}
24... Rg8 {[%clk 0:00:38]} 25. Qf6+ {[%clk 0:02:07.3]} 25... Ke8 {[%clk
0:00:37.7]} 26. Rh1 {[%clk 0:02:07.8]} 26... Qd7 {[%clk 0:00:37.8]} 27. d5
{[%clk 0:02:01.8]} 27... Qe7 {[%clk 0:00:31.9]} 28. dxe6 {[%clk 0:01:59.1]}
28... Rd8 {[%clk 0:00:24.3]} 29. Qh6 {[%clk 0:01:40.4]} 29... Rd5 {[%clk
0:00:17.6]} 30. Qh5+ {[%clk 0:01:38.4]} 30... Kd8 {[%clk 0:00:16.3]} 31. Qxf5
{[%clk 0:01:23.9]} 31... Kc7 {[%clk 0:00:14.7]} 32. f4 {[%clk 0:00:53.2]} 32...
a5 {[%clk 0:00:13.8]} 33. g4 {[%clk 0:00:52.2]} 33... a4 {[%clk 0:00:13.2]} 34.
Rh7 {[%clk 0:00:50]} 34... Rg7 {[%clk 0:00:12]} 35. Rxg7 {[%clk 0:00:36.2]}
35... Qxg7 {[%clk 0:00:11]} 36. a3 {[%clk 0:00:33.2]} 36... Rd1+ {[%clk
0:00:08.2]} 37. Kxb2 {[%clk 0:00:32.1]} 37... b5 {[%clk 0:00:06.8]} 38. Qf7+
{[%clk 0:00:29.9]} 38... Qxf7 {[%clk 0:00:07]} 39. exf7 {[%clk 0:00:30.8]} 39...
Rd8 {[%clk 0:00:07.5]} 40. g5 {[%clk 0:00:31.2]} 40... Kd7 {[%clk 0:00:07.3]}
41. g6 {[%clk 0:00:29.1]} 41... Ke7 {[%clk 0:00:07.3]} 42. f5 {[%clk 0:00:29.6]}
42... Rd5 {[%clk 0:00:05.4]} 43. f6+ {[%clk 0:00:28.7]} 43... Kf8 {[%clk
0:00:04.9]} 44. e6 {[%clk 0:00:29.2]} 44... Re5 {[%clk 0:00:02.3]} 45. g7#
{[%clk 0:00:25.7]} 1-0

[Event "*** Titled Tuesday Blitz"]
[Site "Chess.com"]
[Date "2020.03.03"]
[Round "7"]
[White "maestroza"]
[Black "cottage_cheese"]
[Result "1-0"]
[WhiteElo "2465"]
[BlackElo "2294"]
[TimeControl "180+1"]
[EndTime "10:14:12 PST"]
[Termination "maestroza won by resignation"]

1. d4 {[%clk 0:03:00.9]} 1... d5 {[%clk 0:02:59.1]} 2. Nf3 {[%clk 0:03:00.4]}
2... Nf6 {[%clk 0:02:58.8]} 3. e3 {[%clk 0:03:00.8]} 3... Bg4 {[%clk 0:02:54.5]}
4. c4 {[%clk 0:02:59.9]} 4... dxc4 {[%clk 0:02:53.6]} 5. Bxc4 {[%clk 0:02:58.9]}
5... e6 {[%clk 0:02:53.8]} 6. O-O {[%clk 0:02:58.4]} 6... a6 {[%clk 0:02:53.9]}
7. Be2 {[%clk 0:02:54.1]} 7... c5 {[%clk 0:02:45.1]} 8. Qb3 {[%clk 0:02:38.5]}
8... Qc7 {[%clk 0:02:33.4]} 9. h3 {[%clk 0:02:20.8]} 9... Bh5 {[%clk 0:02:24.8]}
10. Nc3 {[%clk 0:02:20.4]} 10... Nc6 {[%clk 0:02:21.5]} 11. d5 {[%clk
0:02:02.2]} 11... exd5 {[%clk 0:01:45.9]} 12. Nxd5 {[%clk 0:02:02]} 12... Nxd5
{[%clk 0:01:46]} 13. Qxd5 {[%clk 0:02:02.5]} 13... Bg6 {[%clk 0:01:41.1]} 14. b3
{[%clk 0:01:41.2]} 14... Rd8 {[%clk 0:01:18.9]} 15. Qc4 {[%clk 0:01:40.4]} 15...
Be7 {[%clk 0:01:12.3]} 16. Bb2 {[%clk 0:01:40.2]} 16... O-O {[%clk 0:01:08.3]}
17. Rfd1 {[%clk 0:01:39.2]} 17... b5 {[%clk 0:01:05.6]} 18. Qc3 {[%clk
0:01:10.2]} 18... Bf6 {[%clk 0:01:04.3]} 19. Qc1 {[%clk 0:01:09.4]} 19... Rxd1+
{[%clk 0:01:02.8]} 20. Bxd1 {[%clk 0:01:10.3]} 20... Bxb2 {[%clk 0:00:53.5]} 21.
Qxb2 {[%clk 0:01:11.2]} 21... Rd8 {[%clk 0:00:51]} 22. Rc1 {[%clk 0:01:11.6]}
22... Nb4 {[%clk 0:00:24.1]} 23. Be2 {[%clk 0:01:11.7]} 23... Qb6 {[%clk
0:00:18.9]} 24. Ne5 {[%clk 0:01:05.7]} 24... Bf5 {[%clk 0:00:15.7]} 25. a3
{[%clk 0:01:02.2]} 25... Nd5 {[%clk 0:00:11.8]} 26. Bf3 {[%clk 0:00:53.6]} 26...
f6 {[%clk 0:00:11.4]} 27. Ng4 {[%clk 0:00:49.5]} 27... Be6 {[%clk 0:00:10.3]}
28. Qc2 {[%clk 0:00:35.9]} 28... Rc8 {[%clk 0:00:07.1]} 29. Rd1 {[%clk 0:00:36]}
29... Ne7 {[%clk 0:00:06.7]} 30. e4 {[%clk 0:00:31.9]} 30... c4 {[%clk
0:00:06.7]} 31. bxc4 {[%clk 0:00:27.3]} 31... bxc4 {[%clk 0:00:06.5]} 32. e5
{[%clk 0:00:24.9]} 32... f5 {[%clk 0:00:05.8]} 33. Ne3 {[%clk 0:00:21.7]} 33...
c3 {[%clk 0:00:05.5]} 34. Rd6 {[%clk 0:00:21.5]} 34... Qb3 {[%clk 0:00:04.5]}
35. Bd1 {[%clk 0:00:11.2]} 35... Qxc2 {[%clk 0:00:03.9]} 36. Bxc2 {[%clk
0:00:12]} 36... Kf7 {[%clk 0:00:03.7]} 37. Rxa6 {[%clk 0:00:11.9]} 37... Rd8
{[%clk 0:00:02.5]} 38. Ra7 {[%clk 0:00:10.3]} 38... Rd2 {[%clk 0:00:03.4]} 39.
g3 {[%clk 0:00:07.1]} 39... g5 {[%clk 0:00:03.1]} 40. f4 {[%clk 0:00:03.9]}
40... gxf4 {[%clk 0:00:04]} 41. gxf4 {[%clk 0:00:04.1]} 41... Re2 {[%clk
0:00:03.7]} 42. Nxf5 {[%clk 0:00:03.5]} 42... Bxf5 {[%clk 0:00:02.1]} 43. Bxf5
{[%clk 0:00:04.4]} 43... c2 {[%clk 0:00:02.5]} 44. Bxc2 {[%clk 0:00:02.9]} 44...
Rxc2 {[%clk 0:00:03.4]} 45. f5 {[%clk 0:00:03.5]} 45... Re2 {[%clk 0:00:02.6]}
46. f6 {[%clk 0:00:03.5]} 46... Rxe5 {[%clk 0:00:02.1]} 47. Rxe7+ {[%clk
0:00:03.8]} 47... Rxe7 {[%clk 0:00:01.6]} 48. fxe7 {[%clk 0:00:04.7]} 48... Kxe7
{[%clk 0:00:02.5]} 49. Kg2 {[%clk 0:00:05.2]} 49... Kd6 {[%clk 0:00:03.4]} 50.
Kg3 {[%clk 0:00:05.7]} 50... Kc5 {[%clk 0:00:04.3]} 51. Kg4 {[%clk 0:00:06.6]}
51... Kb5 {[%clk 0:00:05.2]} 52. Kh5 {[%clk 0:00:07.3]} 52... Ka4 {[%clk
0:00:06.1]} 53. Kh6 {[%clk 0:00:08.2]} 53... Kxa3 {[%clk 0:00:07]} 54. Kxh7
{[%clk 0:00:08.9]} 54... Kb4 {[%clk 0:00:07.9]} 55. Kg7 {[%clk 0:00:09.4]} 55...
Kc5 {[%clk 0:00:08.8]} 56. h4 {[%clk 0:00:10.3]} 56... Kd5 {[%clk 0:00:09.7]}
57. h5 {[%clk 0:00:11.2]} 57... Ke5 {[%clk 0:00:10.6]} 58. h6 {[%clk 0:00:12]}
58... Kf5 {[%clk 0:00:11.5]} 59. h7 {[%clk 0:00:12.9]} 1-0

[Event "*** Titled Tuesday Blitz"]
[Site "Chess.com"]
[Date "2020.03.03"]
[Round "7"]
[White "Volodar_Murzin"]
[Black "talman67"]
[Result "1-0"]
[WhiteElo "2688"]
[BlackElo "2552"]
[TimeControl "180+1"]
[EndTime "10:14:21 PST"]
[Termination "Volodar_Murzin won on time"]

1. e4 {[%clk 0:03:00.9]} 1... e5 {[%clk 0:03:00]} 2. Nf3 {[%clk 0:02:59.9]} 2...
Nc6 {[%clk 0:03:00.1]} 3. Bb5 {[%clk 0:03:00.2]} 3... a6 {[%clk 0:02:59.8]} 4.
Ba4 {[%clk 0:03:00.5]} 4... Nf6 {[%clk 0:02:55.8]} 5. O-O {[%clk 0:02:59.9]}
5... Nxe4 {[%clk 0:02:54.2]} 6. Re1 {[%clk 0:02:59.3]} 6... Nc5 {[%clk 0:02:48]}
7. Bxc6 {[%clk 0:02:51.7]} 7... dxc6 {[%clk 0:02:48.9]} 8. Nxe5 {[%clk
0:02:49.1]} 8... Be7 {[%clk 0:02:48.9]} 9. d4 {[%clk 0:02:42]} 9... Ne6 {[%clk
0:02:48.9]} 10. c3 {[%clk 0:02:42.7]} 10... O-O {[%clk 0:02:49.1]} 11. Be3
{[%clk 0:02:42.3]} 11... f6 {[%clk 0:02:47.8]} 12. Nd3 {[%clk 0:02:39.9]} 12...
Re8 {[%clk 0:02:42.4]} 13. Nd2 {[%clk 0:02:37.1]} 13... Nf8 {[%clk 0:02:42.4]}
14. Qb3+ {[%clk 0:02:31.8]} 14... Qd5 {[%clk 0:02:33.5]} 15. Bf4 {[%clk
0:02:25.1]} 15... Ne6 {[%clk 0:02:25.6]} 16. Bg3 {[%clk 0:02:22.5]} 16... Qxb3
{[%clk 0:02:19.8]} 17. axb3 {[%clk 0:02:18.5]} 17... Kf7 {[%clk 0:02:20.3]} 18.
Nc4 {[%clk 0:02:16]} 18... Bd8 {[%clk 0:02:16.4]} 19. b4 {[%clk 0:02:13.8]}
19... Nf8 {[%clk 0:02:13.5]} 20. Rxe8 {[%clk 0:01:43.7]} 20... Kxe8 {[%clk
0:02:14.4]} 21. Re1+ {[%clk 0:01:43.9]} 21... Kf7 {[%clk 0:02:12]} 22. Na5
{[%clk 0:01:44.4]} 22... Rb8 {[%clk 0:02:07.3]} 23. Nc5 {[%clk 0:01:41.6]} 23...
Ne6 {[%clk 0:01:57.7]} 24. Rxe6 {[%clk 0:01:24.4]} 24... Bxe6 {[%clk 0:01:55.9]}
25. Ncxb7 {[%clk 0:01:25]} 25... Bd7 {[%clk 0:01:48]} 26. Nc5 {[%clk 0:01:19.4]}
26... Be8 {[%clk 0:01:45.3]} 27. Nxa6 {[%clk 0:01:18.7]} 27... Ra8 {[%clk
0:01:38.8]} 28. Nc5 {[%clk 0:01:16.9]} 28... Be7 {[%clk 0:01:36.7]} 29. Bxc7
{[%clk 0:01:16.1]} 29... Bxc5 {[%clk 0:01:36.7]} 30. bxc5 {[%clk 0:01:09.8]}
30... Ke7 {[%clk 0:01:26.5]} 31. f3 {[%clk 0:01:05]} 31... Bf7 {[%clk 0:01:24]}
32. b4 {[%clk 0:00:55]} 32... Kd7 {[%clk 0:01:14.1]} 33. Bf4 {[%clk 0:00:53.3]}
33... g5 {[%clk 0:01:11.4]} 34. Be3 {[%clk 0:00:48.8]} 34... Kc7 {[%clk
0:01:10.6]} 35. Kf2 {[%clk 0:00:48.8]} 35... Re8 {[%clk 0:01:09.9]} 36. Ke2
{[%clk 0:00:47.8]} 36... f5 {[%clk 0:01:05.9]} 37. Kd2 {[%clk 0:00:47.2]} 37...
f4 {[%clk 0:01:06.1]} 38. Bf2 {[%clk 0:00:47.3]} 38... h5 {[%clk 0:01:02]} 39.
c4 {[%clk 0:00:44.6]} 39... g4 {[%clk 0:00:43.3]} 40. b5 {[%clk 0:00:37.5]}
40... cxb5 {[%clk 0:00:31]} 41. cxb5 {[%clk 0:00:37.6]} 41... Bd5 {[%clk
0:00:31.6]} 42. Bh4 {[%clk 0:00:23.7]} 42... gxf3 {[%clk 0:00:27.3]} 43. gxf3
{[%clk 0:00:22.8]} 43... Bxf3 {[%clk 0:00:27.5]} 44. Bg5 {[%clk 0:00:20.3]}
44... Re2+ {[%clk 0:00:13.4]} 45. Kc3 {[%clk 0:00:20.2]} 45... Re3+ {[%clk
0:00:13.4]} 46. Kb4 {[%clk 0:00:18.3]} 46... Re4 {[%clk 0:00:12.7]} 47. b6+
{[%clk 0:00:18.1]} 47... Kb8 {[%clk 0:00:08.6]} 48. Kc4 {[%clk 0:00:12.4]} 48...
Be2+ {[%clk 0:00:04.7]} 49. Kd5 {[%clk 0:00:12.2]} 49... Bf3 {[%clk 0:00:05.2]}
50. c6 {[%clk 0:00:09.1]} 50... Re8+ {[%clk 0:00:02.8]} 51. Kc5 {[%clk
0:00:08.7]} 51... Bxc6 {[%clk 0:00:01.2]} 52. Bxf4+ {[%clk 0:00:08.3]} 1-0